[Event "Live Chess"]
[Site "Chess.com"]
[Date "2023.05.20"]
[Round "-"]
[White "Tushinskiy"]
[Black "ChessTWSS"]
[Result "1-0"]
[WhiteElo "2103"]
[BlackElo "1518"]
[TimeControl "300"]
[EndTime "9:23:57 PDT"]
[Termination "Tushinskiy won on time"]

1. d4 {[%clk 0:04:58.1]} 1... d5 {[%clk 0:04:52.6]} 2. c3 {[%clk 0:04:58]} 2...
Nc6 {[%clk 0:04:33.7]} 3. Nf3 {[%clk 0:04:57.9]} 3... Bf5 {[%clk 0:04:21.5]} 4.
Bf4 {[%clk 0:04:57.8]} 4... e6 {[%clk 0:04:17.6]} 5. Bg3 {[%clk 0:04:57.6]} 5...
Nf6 {[%clk 0:04:13.3]} 6. Nbd2 {[%clk 0:04:52.1]} 6... Bd6 {[%clk 0:04:07.2]} 7.
e3 {[%clk 0:04:44.4]} 7... O-O {[%clk 0:04:01.2]} 8. Be2 {[%clk 0:04:34.9]} 8...
Ne4 {[%clk 0:03:54.8]} 9. Nxe4 {[%clk 0:04:32.7]} 9... dxe4 {[%clk 0:03:48.5]}
10. Nd2 {[%clk 0:04:25.8]} 10... Re8 {[%clk 0:03:40.3]} 11. b4 {[%clk
0:04:14.8]} 11... e5 {[%clk 0:03:30.5]} 12. a3 {[%clk 0:04:12.1]} 12... exd4
{[%clk 0:03:23.4]} 13. cxd4 {[%clk 0:04:12]} 13... a6 {[%clk 0:03:16.3]} 14. Rc1
{[%clk 0:04:03.4]} 14... Nb8 {[%clk 0:03:04]} 15. O-O {[%clk 0:03:57.3]} 15...
h6 {[%clk 0:02:55.3]} 16. Qc2 {[%clk 0:03:54.2]} 16... c6 {[%clk 0:02:41.4]} 17.
Rfd1 {[%clk 0:03:49.7]} 17... g5 {[%clk 0:02:28.2]} 18. Nc4 {[%clk 0:03:44.9]}
18... Bxg3 {[%clk 0:02:22.7]} 19. hxg3 {[%clk 0:03:42.7]} 19... Be6 {[%clk
0:02:15]} 20. Ne5 {[%clk 0:03:35]} 20... Nd7 {[%clk 0:02:09.1]} 21. Qxe4 {[%clk
0:03:31.6]} 21... f6 {[%clk 0:01:52.6]} 22. Qg6+ {[%clk 0:03:28]} 22... Kf8
{[%clk 0:01:48.7]} 23. Qxh6+ {[%clk 0:03:24.4]} 23... Ke7 {[%clk 0:01:44.7]} 24.
Qg7+ {[%clk 0:03:15.9]} 24... Kd6 {[%clk 0:01:40.6]} 25. Nxd7 {[%clk 0:03:01.9]}
25... Qxd7 {[%clk 0:01:36.5]} 26. Qxf6 {[%clk 0:02:57.1]} 26... Qf7 {[%clk
0:01:26.5]} 27. Qxg5 {[%clk 0:02:51.8]} 27... Qf5 {[%clk 0:01:20.4]} 28. Qxf5
{[%clk 0:02:46.1]} 28... Bxf5 {[%clk 0:01:16.8]} 29. g4 {[%clk 0:02:44.7]} 29...
Bg6 {[%clk 0:01:11.5]} 30. g3 {[%clk 0:02:39.7]} 30... Rf8 {[%clk 0:01:07.7]}
31. f4 {[%clk 0:02:38]} 31... b6 {[%clk 0:01:02.8]} 32. Bf3 {[%clk 0:02:33.6]}
32... Rac8 {[%clk 0:00:50.7]} 33. f5 {[%clk 0:02:22.7]} 33... Bf7 {[%clk
0:00:46.9]} 34. e4 {[%clk 0:02:16.2]} 34... a5 {[%clk 0:00:39.8]} 35. e5+ {[%clk
0:02:14.8]} 35... Kc7 {[%clk 0:00:35.5]} 36. Rxc6+ {[%clk 0:02:07.8]} 36... Kd7
{[%clk 0:00:30.9]} 37. e6+ {[%clk 0:02:05.9]} 37... Bxe6 {[%clk 0:00:25.7]} 38.
fxe6+ {[%clk 0:02:05.8]} 38... Ke7 {[%clk 0:00:22.1]} 39. Rxc8 {[%clk
0:02:03.3]} 39... Rxc8 {[%clk 0:00:16.7]} 40. d5 {[%clk 0:01:58.1]} 40... Kd6
{[%clk 0:00:14.2]} 41. bxa5 {[%clk 0:01:56.1]} 41... b5 {[%clk 0:00:13.2]} 42.
Kf2 {[%clk 0:01:52.8]} 42... Rc3 {[%clk 0:00:08.9]} 43. Re1 {[%clk 0:01:48.5]}
43... Rxa3 {[%clk 0:00:07]} 44. e7 {[%clk 0:01:46.7]} 44... Rxa5 {[%clk
0:00:00.9]} 45. e8=Q {[%clk 0:01:39.7]} 45... Ra2+ {[%clk 0:00:00.8]} 46. Re2
{[%clk 0:01:38.4]} 1-0

[Event "Live Chess"]
[Site "Chess.com"]
[Date "2023.05.20"]
[Round "-"]
[White "toxic_rabbit"]
[Black "friarnator"]
[Result "1-0"]
[WhiteElo "2009"]
[BlackElo "2002"]
[TimeControl "300"]
[EndTime "9:23:58 PDT"]
[Termination "toxic_rabbit won on time"]

1. e4 {[%clk 0:04:59]} 1... Nf6 {[%clk 0:04:57.2]} 2. e5 {[%clk 0:04:57.6]} 2...
Nd5 {[%clk 0:04:56.5]} 3. c4 {[%clk 0:04:57.2]} 3... Nb6 {[%clk 0:04:54.9]} 4.
d4 {[%clk 0:04:56.8]} 4... d6 {[%clk 0:04:54.2]} 5. exd6 {[%clk 0:04:56.7]} 5...
cxd6 {[%clk 0:04:53.9]} 6. h3 {[%clk 0:04:56.6]} 6... g6 {[%clk 0:04:53.3]} 7.
Nf3 {[%clk 0:04:56.1]} 7... Bg7 {[%clk 0:04:52.9]} 8. Be2 {[%clk 0:04:56]} 8...
O-O {[%clk 0:04:52.3]} 9. Be3 {[%clk 0:04:55.4]} 9... Nc6 {[%clk 0:04:51.7]} 10.
O-O {[%clk 0:04:53.2]} 10... e5 {[%clk 0:04:50.8]} 11. dxe5 {[%clk 0:04:50]}
11... Nxe5 {[%clk 0:04:47.4]} 12. Nxe5 {[%clk 0:04:48.3]} 12... dxe5 {[%clk
0:04:45.5]} 13. Qxd8 {[%clk 0:04:44.1]} 13... Rxd8 {[%clk 0:04:45.4]} 14. Nc3
{[%clk 0:04:43.7]} 14... Be6 {[%clk 0:04:42.9]} 15. Bxb6 {[%clk 0:04:38.7]}
15... axb6 {[%clk 0:04:40.7]} 16. Rad1 {[%clk 0:04:38.2]} 16... f5 {[%clk
0:04:33.2]} 17. a3 {[%clk 0:04:36.6]} 17... e4 {[%clk 0:04:30.3]} 18. Nd5 {[%clk
0:04:30.2]} 18... Bxd5 {[%clk 0:04:27.1]} 19. Rxd5 {[%clk 0:04:28.1]} 19... Rxd5
{[%clk 0:04:17.6]} 20. cxd5 {[%clk 0:04:28]} 20... Bxb2 {[%clk 0:04:16.9]} 21.
Rb1 {[%clk 0:04:26.6]} 21... Bd4 {[%clk 0:04:11.4]} 22. Rd1 {[%clk 0:04:23.8]}
22... Bc5 {[%clk 0:04:08.2]} 23. d6 {[%clk 0:04:20.8]} 23... Rd8 {[%clk
0:04:06.3]} 24. d7 {[%clk 0:04:17.7]} 24... Kf7 {[%clk 0:04:05.1]} 25. a4 {[%clk
0:04:12.5]} 25... Ke7 {[%clk 0:04:02.2]} 26. Bb5 {[%clk 0:04:11.8]} 26... f4
{[%clk 0:03:52.6]} 27. Rd5 {[%clk 0:04:07.3]} 27... e3 {[%clk 0:03:37.7]} 28.
fxe3 {[%clk 0:04:03.2]} 28... fxe3 {[%clk 0:03:31]} 29. Re5+ {[%clk 0:03:48.9]}
29... Kd6 {[%clk 0:03:21.1]} 30. Re8 {[%clk 0:03:44.2]} 30... Kc7 {[%clk
0:03:13.5]} 31. Kf1 {[%clk 0:03:38.4]} 31... Bd4 {[%clk 0:02:53.3]} 32. Ke2
{[%clk 0:03:27.3]} 32... Bc5 {[%clk 0:02:51.9]} 33. g4 {[%clk 0:03:21]} 33... h6
{[%clk 0:02:41.7]} 34. Re6 {[%clk 0:03:15.3]} 34... Rf8 {[%clk 0:02:28.9]} 35.
Re8 {[%clk 0:02:56.5]} 35... Rf2+ {[%clk 0:02:23.8]} 36. Kd3 {[%clk 0:02:47.1]}
36... Rd2+ {[%clk 0:02:20.6]} 37. Ke4 {[%clk 0:02:41]} 37... Rxd7 {[%clk
0:01:46.5]} 38. Bxd7 {[%clk 0:02:34.4]} 38... Kxd7 {[%clk 0:01:46.4]} 39. Re5
{[%clk 0:02:15.9]} 39... e2 {[%clk 0:01:41.6]} 40. Kf3 {[%clk 0:02:11.6]} 40...
Kd6 {[%clk 0:01:26.7]} 41. Rxe2 {[%clk 0:02:07.4]} 41... Bb4 {[%clk 0:01:24.1]}
42. Re8 {[%clk 0:02:00.7]} 42... Kc5 {[%clk 0:00:56.8]} 43. Rg8 {[%clk
0:01:51.3]} 43... Bd2 {[%clk 0:00:54.2]} 44. Rxg6 {[%clk 0:01:49]} 44... b5
{[%clk 0:00:52]} 45. axb5 {[%clk 0:01:47.9]} 45... Kxb5 {[%clk 0:00:51.9]} 46.
h4 {[%clk 0:01:46.1]} 46... Kc4 {[%clk 0:00:47.4]} 47. g5 {[%clk 0:01:45.4]}
47... hxg5 {[%clk 0:00:46.1]} 48. h5 {[%clk 0:01:44.2]} 48... b5 {[%clk
0:00:43.5]} 49. Kg4 {[%clk 0:01:39.5]} 49... b4 {[%clk 0:00:41.8]} 50. h6 {[%clk
0:01:38.6]} 50... Kb5 {[%clk 0:00:35.2]} 51. h7 {[%clk 0:01:36.9]} 51... Bc3
{[%clk 0:00:33.5]} 52. Rg8 {[%clk 0:01:33.5]} 52... Ka4 {[%clk 0:00:25.8]} 53.
Kxg5 {[%clk 0:01:30.5]} 53... b3 {[%clk 0:00:24.1]} 54. Ra8+ {[%clk 0:01:29.3]}
54... Kb4 {[%clk 0:00:22.3]} 55. Rb8+ {[%clk 0:01:21.8]} 55... Ka3 {[%clk
0:00:21.2]} 56. Rf8 {[%clk 0:01:15.4]} 56... Ka2 {[%clk 0:00:16.6]} 57. Rf3
{[%clk 0:01:13.2]} 57... Be5 {[%clk 0:00:13.9]} 58. Kf5 {[%clk 0:01:09]} 58...
Bd4 {[%clk 0:00:13.4]} 59. Ke4 {[%clk 0:01:08.2]} 59... Bg7 {[%clk 0:00:11.7]}
60. Kd3 {[%clk 0:00:59.2]} 60... b2 {[%clk 0:00:10.2]} 61. Rf2 {[%clk
0:00:55.5]} 61... Ka1 {[%clk 0:00:08.8]} 62. Rf1+ {[%clk 0:00:40.7]} 62... b1=Q+
{[%clk 0:00:08.1]} 63. Rxb1+ {[%clk 0:00:40.1]} 63... Kxb1 {[%clk 0:00:07.2]}
64. Ke4 {[%clk 0:00:40]} 64... Ka1 {[%clk 0:00:06.9]} 65. Kf5 {[%clk 0:00:39.9]}
65... Kb1 {[%clk 0:00:06.8]} 66. Kg6 {[%clk 0:00:39.8]} 66... Bh8 {[%clk
0:00:06.3]} 67. Kf7 {[%clk 0:00:39.7]} 67... Be5 {[%clk 0:00:06.1]} 68. Kg8
{[%clk 0:00:39.6]} 68... Bd4 {[%clk 0:00:05.6]} 69. Kf7 {[%clk 0:00:39.5]} 69...
Be5 {[%clk 0:00:04.7]} 70. Kg6 {[%clk 0:00:39.4]} 70... Bd4 {[%clk 0:00:04.3]}
71. Kh5 {[%clk 0:00:39.3]} 71... Be5 {[%clk 0:00:04]} 72. Kg4 {[%clk 0:00:39.2]}
72... Bd4 {[%clk 0:00:03.9]} 73. Kf5 {[%clk 0:00:39.1]} 73... Be5 {[%clk
0:00:03.8]} 74. Kxe5 {[%clk 0:00:38.7]} 74... Kc2 {[%clk 0:00:03.2]} 75. h8=Q
{[%clk 0:00:37.8]} 75... Kd1 {[%clk 0:00:03.1]} 76. Qh2 {[%clk 0:00:37]} 1-0

[Event "Live Chess"]
[Site "Chess.com"]
[Date "2023.05.20"]
[Round "-"]
[White "Bob2pen"]
[Black "BJAW87"]
[Result "1-0"]
[WhiteElo "1743"]
[BlackElo "1468"]
[TimeControl "300"]
[EndTime "9:24:02 PDT"]
[Termination "Bob2pen won by resignation"]

1. c4 {[%clk 0:04:58]} 1... e5 {[%clk 0:04:58.6]} 2. g3 {[%clk 0:04:56.2]} 2...
d5 {[%clk 0:04:55.5]} 3. Bg2 {[%clk 0:04:53.1]} 3... e4 {[%clk 0:04:52.3]} 4. d3
{[%clk 0:04:48.6]} 4... f5 {[%clk 0:04:50.6]} 5. cxd5 {[%clk 0:04:46.5]} 5...
Qxd5 {[%clk 0:04:47.1]} 6. Nc3 {[%clk 0:04:44.3]} 6... Bb4 {[%clk 0:04:36.6]} 7.
Qa4+ {[%clk 0:04:35.7]} 7... Nc6 {[%clk 0:04:25.7]} 8. Bd2 {[%clk 0:04:31.2]}
8... Bxc3 {[%clk 0:04:23.7]} 9. Bxc3 {[%clk 0:04:29.9]} 9... Nf6 {[%clk
0:04:01.1]} 10. Bxf6 {[%clk 0:04:23.1]} 10... gxf6 {[%clk 0:03:59.8]} 11. dxe4
{[%clk 0:04:22]} 11... fxe4 {[%clk 0:03:58.6]} 12. Bxe4 {[%clk 0:04:17]} 12...
Qd7 {[%clk 0:03:11.2]} 13. Rd1 {[%clk 0:04:12.8]} 13... Qe6 {[%clk 0:03:00.2]}
14. Bd5 {[%clk 0:03:59.6]} 14... Qd7 {[%clk 0:02:48.5]} 15. Nf3 {[%clk
0:03:47.9]} 15... Ke7 {[%clk 0:01:40]} 16. Bxc6 {[%clk 0:03:35.9]} 16... bxc6
{[%clk 0:01:36.5]} 17. Rxd7+ {[%clk 0:03:34]} 17... Kxd7 {[%clk 0:01:36.4]} 1-0

[Event "Live Chess"]
[Site "Chess.com"]
[Date "2023.05.20"]
[Round "-"]
[White "OSmith06"]
[Black "SirEntrails"]
[Result "1-0"]
[WhiteElo "1746"]
[BlackElo "504"]
[TimeControl "300"]
[EndTime "9:24:09 PDT"]
[Termination "OSmith06 won by checkmate"]

1. e4 {[%clk 0:04:58.8]} 1... d5 {[%clk 0:04:55.1]} 2. exd5 {[%clk 0:04:57.5]}
2... Nf6 {[%clk 0:04:54.5]} 3. Nf3 {[%clk 0:04:55.8]} 3... Nxd5 {[%clk
0:04:53.5]} 4. d4 {[%clk 0:04:54.1]} 4... Bg4 {[%clk 0:04:50.6]} 5. Be2 {[%clk
0:04:52.2]} 5... e6 {[%clk 0:04:46.5]} 6. O-O {[%clk 0:04:49.4]} 6... Bb4 {[%clk
0:04:44.1]} 7. c3 {[%clk 0:04:45.5]} 7... Bd6 {[%clk 0:04:41.1]} 8. h3 {[%clk
0:04:43.6]} 8... Bxf3 {[%clk 0:04:39.4]} 9. Bxf3 {[%clk 0:04:43.5]} 9... O-O
{[%clk 0:04:38]} 10. c4 {[%clk 0:04:42.1]} 10... Nb6 {[%clk 0:04:25.8]} 11. Bxb7
{[%clk 0:04:40]} 11... Nxc4 {[%clk 0:04:09.6]} 12. Bxa8 {[%clk 0:04:31]} 12...
Nc6 {[%clk 0:04:02.6]} 13. Bxc6 {[%clk 0:04:29.6]} 13... Na5 {[%clk 0:03:56.2]}
14. d5 {[%clk 0:04:23.3]} 14... Nxc6 {[%clk 0:03:52.4]} 15. dxc6 {[%clk
0:04:21.6]} 15... Qa8 {[%clk 0:03:48.9]} 16. Nc3 {[%clk 0:04:18.2]} 16... Qxc6
{[%clk 0:03:46.6]} 17. Be3 {[%clk 0:04:16.8]} 17... Bb4 {[%clk 0:03:39.4]} 18.
Rc1 {[%clk 0:04:12.9]} 18... Bxc3 {[%clk 0:03:37.2]} 19. Rxc3 {[%clk 0:04:12]}
19... Qe4 {[%clk 0:03:30.1]} 20. Rxc7 {[%clk 0:04:05]} 20... Rb8 {[%clk
0:03:26.4]} 21. Qd7 {[%clk 0:03:58.9]} 21... g6 {[%clk 0:03:23]} 22. Qxf7+
{[%clk 0:03:57.2]} 22... Kh8 {[%clk 0:03:17]} 23. Qg7# {[%clk 0:03:56.3]} 1-0

[Event "Live Chess"]
[Site "Chess.com"]
[Date "2023.05.20"]
[Round "-"]
[White "Greenbecker"]
[Black "HoarseyHorsey"]
[Result "1-0"]
[WhiteElo "1705"]
[BlackElo "1387"]
[TimeControl "300"]
[EndTime "9:24:10 PDT"]
[Termination "Greenbecker won by resignation"]

1. e4 {[%clk 0:04:55.9]} 1... c5 {[%clk 0:04:58.9]} 2. Nf3 {[%clk 0:04:52.9]}
2... e6 {[%clk 0:04:58.3]} 3. d4 {[%clk 0:04:52]} 3... cxd4 {[%clk 0:04:57.5]}
4. Nxd4 {[%clk 0:04:50.8]} 4... Nf6 {[%clk 0:04:56.9]} 5. Nc3 {[%clk 0:04:49.2]}
5... Nc6 {[%clk 0:04:56.2]} 6. Bc4 {[%clk 0:04:44.8]} 6... Bb4 {[%clk
0:04:51.7]} 7. Nxc6 {[%clk 0:04:39]} 7... bxc6 {[%clk 0:04:48]} 8. e5 {[%clk
0:04:33.2]} 8... Nd5 {[%clk 0:04:47.1]} 9. Bxd5 {[%clk 0:04:28]} 9... cxd5
{[%clk 0:04:38.7]} 10. Qg4 {[%clk 0:04:13.5]} 10... Bxc3+ {[%clk 0:04:26.9]} 11.
bxc3 {[%clk 0:04:10.8]} 11... g6 {[%clk 0:04:16.9]} 12. O-O {[%clk 0:04:00.5]}
12... Qc7 {[%clk 0:04:11.8]} 13. Qd4 {[%clk 0:03:42.7]} 13... d6 {[%clk
0:04:08.7]} 14. Bf4 {[%clk 0:03:35.2]} 14... O-O {[%clk 0:04:03.2]} 15. exd6
{[%clk 0:03:23.8]} 15... Qd8 {[%clk 0:04:01.1]} 16. Bh6 {[%clk 0:03:16.2]} 16...
f6 {[%clk 0:04:00.4]} 17. Bxf8 {[%clk 0:03:14.1]} 17... Qxf8 {[%clk 0:03:59.6]}
18. Qc5 {[%clk 0:03:00.6]} 18... Kg7 {[%clk 0:03:56.8]} 19. Rab1 {[%clk
0:02:48]} 19... Bd7 {[%clk 0:03:54.7]} 20. Rb7 {[%clk 0:02:40.3]} 20... Qe8
{[%clk 0:03:52.7]} 21. Rfb1 {[%clk 0:02:27.3]} 21... Rc8 {[%clk 0:03:50.9]} 22.
Qxa7 {[%clk 0:02:22.3]} 1-0

[Event "Live Chess"]
[Site "Chess.com"]
[Date "2023.05.20"]
[Round "-"]
[White "Hacker_2009"]
[Black "Vedant-1411"]
[Result "1-0"]
[WhiteElo "1928"]
[BlackElo "778"]
[TimeControl "300"]
[EndTime "9:24:12 PDT"]
[Termination "Hacker_2009 won by checkmate"]

1. d4 {[%clk 0:04:58.6]} 1... d5 {[%clk 0:04:51.6]} 2. Nf3 {[%clk 0:04:57.2]}
2... Nc6 {[%clk 0:04:50.4]} 3. e3 {[%clk 0:04:56.1]} 3... Nf6 {[%clk 0:04:49.5]}
4. c4 {[%clk 0:04:55.7]} 4... Be6 {[%clk 0:04:47]} 5. cxd5 {[%clk 0:04:54.4]}
5... Bxd5 {[%clk 0:04:44.8]} 6. Nc3 {[%clk 0:04:53.8]} 6... Be6 {[%clk
0:04:42.7]} 7. e4 {[%clk 0:04:48.3]} 7... Nxe4 {[%clk 0:04:38.9]} 8. Nxe4 {[%clk
0:04:47.1]} 8... Bf5 {[%clk 0:04:37.4]} 9. Nc3 {[%clk 0:04:39.2]} 9... Nb4
{[%clk 0:04:34.9]} 10. Qa4+ {[%clk 0:04:36.7]} 10... Nc6 {[%clk 0:04:31.9]} 11.
d5 {[%clk 0:04:36]} 11... Bd7 {[%clk 0:04:27.6]} 12. dxc6 {[%clk 0:04:35.2]}
12... Bxc6 {[%clk 0:04:26]} 13. Qb3 {[%clk 0:04:33]} 13... Qd6 {[%clk 0:04:21]}
14. Bc4 {[%clk 0:04:27.4]} 14... e6 {[%clk 0:04:16.2]} 15. Nb5 {[%clk
0:04:22.9]} 15... Qe7 {[%clk 0:04:07.4]} 16. Bf4 {[%clk 0:04:18.2]} 16... O-O-O
{[%clk 0:04:04.4]} 17. O-O {[%clk 0:04:12.3]} 17... Kb8 {[%clk 0:04:00.9]} 18.
Nxc7 {[%clk 0:04:04.9]} 18... Kc8 {[%clk 0:03:55.9]} 19. Nb5 {[%clk 0:04:01.7]}
19... Bxb5 {[%clk 0:03:33.7]} 20. Bxb5 {[%clk 0:03:57.7]} 20... a6 {[%clk
0:03:29.2]} 21. Rac1+ {[%clk 0:03:56.6]} 21... Qc7 {[%clk 0:03:25.3]} 22. Rxc7+
{[%clk 0:03:54.2]} 22... Kb8 {[%clk 0:03:23.1]} 23. Rxf7+ {[%clk 0:03:53]} 23...
Ka8 {[%clk 0:03:19.1]} 24. Bxa6 {[%clk 0:03:50.8]} 24... bxa6 {[%clk 0:03:16.8]}
25. Qb7# {[%clk 0:03:49.1]} 1-0

[Event "Live Chess"]
[Site "Chess.com"]
[Date "2023.05.20"]
[Round "-"]
[White "Chesscoach_Golichenko"]
[Black "chessleanstrategist"]
[Result "1-0"]
[WhiteElo "2644"]
[BlackElo "416"]
[TimeControl "300"]
[EndTime "9:24:13 PDT"]
[Termination "Chesscoach_Golichenko won by checkmate"]

1. d4 {[%clk 0:04:58.2]} 1... Nf6 {[%clk 0:04:57.9]} 2. c4 {[%clk 0:04:55]} 2...
g6 {[%clk 0:04:51.7]} 3. Nc3 {[%clk 0:04:53.4]} 3... Bg7 {[%clk 0:04:51.3]} 4.
e4 {[%clk 0:04:50.8]} 4... d6 {[%clk 0:04:49.7]} 5. Be2 {[%clk 0:04:49.6]} 5...
O-O {[%clk 0:04:48.7]} 6. Bg5 {[%clk 0:04:43.5]} 6... Nbd7 {[%clk 0:04:43.5]} 7.
Qd2 {[%clk 0:04:36]} 7... a5 {[%clk 0:04:39.2]} 8. h4 {[%clk 0:04:30]} 8... h5
{[%clk 0:04:36]} 9. f3 {[%clk 0:04:27.8]} 9... b6 {[%clk 0:04:28.9]} 10. Nh3
{[%clk 0:04:23.8]} 10... c5 {[%clk 0:04:27.3]} 11. d5 {[%clk 0:04:16.9]} 11...
Ne5 {[%clk 0:04:19.8]} 12. Nf2 {[%clk 0:04:15]} 12... Ba6 {[%clk 0:04:10.6]} 13.
b3 {[%clk 0:04:13.3]} 13... Nfd7 {[%clk 0:03:54.3]} 14. f4 {[%clk 0:04:06.2]}
14... Ng4 {[%clk 0:03:38.2]} 15. Nxg4 {[%clk 0:04:00.9]} 15... hxg4 {[%clk
0:03:37.1]} 16. Bxg4 {[%clk 0:04:00.8]} 16... f5 {[%clk 0:03:31.7]} 17. exf5
{[%clk 0:03:57]} 17... gxf5 {[%clk 0:03:29.7]} 18. Bf3 {[%clk 0:03:55.2]} 18...
Nf6 {[%clk 0:02:52]} 19. O-O {[%clk 0:03:47.6]} 19... Nh7 {[%clk 0:02:50.3]} 20.
Rae1 {[%clk 0:03:45]} 20... Nxg5 {[%clk 0:02:44]} 21. hxg5 {[%clk 0:03:39.6]}
21... Re8 {[%clk 0:02:27.2]} 22. Re6 {[%clk 0:03:20.9]} 22... Rf8 {[%clk
0:02:14.1]} 23. Rfe1 {[%clk 0:03:18.9]} 23... Rf6 {[%clk 0:02:10.5]} 24. gxf6
{[%clk 0:03:17.4]} 24... Bxf6 {[%clk 0:02:02.4]} 25. Rxf6 {[%clk 0:03:14.5]}
25... exf6 {[%clk 0:02:01.2]} 26. Qf2 {[%clk 0:03:14.4]} 26... Kf7 {[%clk
0:01:54.6]} 27. Bh5+ {[%clk 0:03:12.1]} 27... Kg7 {[%clk 0:01:21.1]} 28. Qg3+
{[%clk 0:03:06.6]} 28... Kh6 {[%clk 0:01:20.2]} 29. Qg6# {[%clk 0:03:05.2]} 1-0

[Event "Live Chess"]
[Site "Chess.com"]
[Date "2023.05.20"]
[Round "-"]
[White "gombofour"]
[Black "ZackirtyChess"]
[Result "0-1"]
[WhiteElo "870"]
[BlackElo "1147"]
[TimeControl "300"]
[EndTime "9:24:28 PDT"]
[Termination "ZackirtyChess won by resignation"]

1. d4 {[%clk 0:04:59.4]} 1... f5 {[%clk 0:04:57]} 2. c4 {[%clk 0:04:54.8]} 2...
Nf6 {[%clk 0:04:55.7]} 3. Nc3 {[%clk 0:04:53.1]} 3... g6 {[%clk 0:04:54.4]} 4.
Nf3 {[%clk 0:04:52.4]} 4... Bg7 {[%clk 0:04:53.3]} 5. Bf4 {[%clk 0:04:48.5]}
5... O-O {[%clk 0:04:50.6]} 6. Qd2 {[%clk 0:04:47.6]} 6... d6 {[%clk 0:04:49.3]}
7. Bh6 {[%clk 0:04:43.7]} 7... Nbd7 {[%clk 0:04:46.9]} 8. Bxg7 {[%clk
0:04:42.3]} 8... Kxg7 {[%clk 0:04:46.1]} 9. g3 {[%clk 0:04:37.1]} 9... e5 {[%clk
0:04:45.2]} 10. dxe5 {[%clk 0:04:35.7]} 10... dxe5 {[%clk 0:04:45.1]} 11. Rd1
{[%clk 0:04:33.4]} 11... e4 {[%clk 0:04:41.1]} 12. Ne5 {[%clk 0:04:28.4]} 12...
b6 {[%clk 0:04:34.1]} 13. Nxd7 {[%clk 0:04:27.6]} 13... Bxd7 {[%clk 0:04:31.3]}
14. Bg2 {[%clk 0:04:23]} 14... Bc6 {[%clk 0:04:28.3]} 15. Qxd8 {[%clk
0:04:20.8]} 15... Raxd8 {[%clk 0:04:28.2]} 16. Rxd8 {[%clk 0:04:20]} 16... Rxd8
{[%clk 0:04:28.1]} 17. O-O {[%clk 0:04:19.2]} 17... Ng4 {[%clk 0:04:24.5]} 18.
h3 {[%clk 0:04:14.9]} 18... Nh6 {[%clk 0:04:22.1]} 19. f3 {[%clk 0:04:06.2]}
19... Rd2 {[%clk 0:04:18.5]} 20. fxe4 {[%clk 0:04:02.3]} 20... fxe4 {[%clk
0:04:13.8]} 21. Bxe4 {[%clk 0:04:01.2]} 21... Bxe4 {[%clk 0:04:12.7]} 22. Nxe4
{[%clk 0:04:00.5]} 22... Rxe2 {[%clk 0:04:09.7]} 23. Ng5 {[%clk 0:03:43.1]}
23... Rxb2 {[%clk 0:04:05.9]} 24. Ne6+ {[%clk 0:03:42.4]} 24... Kh8 {[%clk
0:03:59.4]} 25. Rf8+ {[%clk 0:03:41.1]} 25... Ng8 {[%clk 0:03:57.5]} 26. Nxc7
{[%clk 0:03:38.2]} 26... Rxa2 {[%clk 0:03:54.3]} 27. Nb5 {[%clk 0:03:37.4]}
27... Ra1+ {[%clk 0:03:51.9]} 28. Kg2 {[%clk 0:03:36.1]} 28... Kg7 {[%clk
0:03:50.4]} 29. Ra8 {[%clk 0:03:32.4]} 29... a6 {[%clk 0:03:49.6]} 30. Nc7
{[%clk 0:03:29.7]} 30... a5 {[%clk 0:03:47.4]} 31. Ra7 {[%clk 0:03:23.4]} 31...
Kf8 {[%clk 0:03:42.1]} 32. Ne6+ {[%clk 0:03:21.5]} 32... Ke8 {[%clk 0:03:41.2]}
33. Ng7+ {[%clk 0:03:19.7]} 33... Kf8 {[%clk 0:03:37.7]} 34. Ne6+ {[%clk
0:03:15.5]} 34... Ke8 {[%clk 0:03:37.1]} 35. Ra8+ {[%clk 0:03:14]} 35... Kf7
{[%clk 0:03:33.3]} 36. Ng5+ {[%clk 0:03:12.2]} 36... Kg7 {[%clk 0:03:30.1]} 37.
Ne6+ {[%clk 0:03:09.1]} 37... Kh8 {[%clk 0:03:25.8]} 38. Rb8 {[%clk 0:03:00.9]}
38... Rb1 {[%clk 0:03:22]} 39. c5 {[%clk 0:02:59]} 39... Rb2+ {[%clk 0:03:19]}
40. Kf3 {[%clk 0:02:57.5]} 40... Rb3+ {[%clk 0:03:16.3]} 41. Kg4 {[%clk
0:02:56.7]} 41... Rb4+ {[%clk 0:03:08.4]} 42. Nf4 {[%clk 0:02:53.8]} 42... Kg7
{[%clk 0:03:05.5]} 43. h4 {[%clk 0:02:48.8]} 43... bxc5 {[%clk 0:02:58]} 44.
Rxb4 {[%clk 0:02:46.9]} 44... cxb4 {[%clk 0:02:55]} 45. Nd5 {[%clk 0:02:45.9]}
45... b3 {[%clk 0:02:53.4]} 46. Nc3 {[%clk 0:02:44.7]} 46... b2 {[%clk
0:02:51.4]} 47. Kf4 {[%clk 0:02:43.1]} 47... a4 {[%clk 0:02:51]} 48. Ke4 {[%clk
0:02:42.2]} 48... a3 {[%clk 0:02:50.7]} 49. Nb1 {[%clk 0:02:41.6]} 49... a2
{[%clk 0:02:49.9]} 50. Nc3 {[%clk 0:02:39]} 0-1

[Event "Live Chess"]
[Site "Chess.com"]
[Date "2023.05.20"]
[Round "-"]
[White "jk0110"]
[Black "Horseymobile"]
[Result "1-0"]
[WhiteElo "1078"]
[BlackElo "1238"]
[TimeControl "300"]
[EndTime "9:24:31 PDT"]
[Termination "jk0110 won by resignation"]

1. e4 {[%clk 0:04:57.4]} 1... c6 {[%clk 0:04:59.6]} 2. d4 {[%clk 0:04:54.5]}
2... d5 {[%clk 0:04:58.8]} 3. Nc3 {[%clk 0:04:53.7]} 3... dxe4 {[%clk
0:04:57.8]} 4. f3 {[%clk 0:04:52.8]} 4... e3 {[%clk 0:04:56.2]} 5. Bxe3 {[%clk
0:04:36.7]} 5... Nf6 {[%clk 0:04:55.6]} 6. Bc4 {[%clk 0:04:34.8]} 6... g6 {[%clk
0:04:53.5]} 7. Ne4 {[%clk 0:04:16.4]} 7... Bg7 {[%clk 0:04:50.4]} 8. Qd2 {[%clk
0:04:08.5]} 8... O-O {[%clk 0:04:39.6]} 9. O-O-O {[%clk 0:04:05.6]} 9... Bf5
{[%clk 0:04:29.4]} 10. Nxf6+ {[%clk 0:03:54.2]} 10... Bxf6 {[%clk 0:04:27.8]}
11. Bh6 {[%clk 0:03:47]} 11... Bg7 {[%clk 0:04:25.2]} 12. Bxg7 {[%clk 0:03:45]}
12... Kxg7 {[%clk 0:04:25.1]} 13. g4 {[%clk 0:03:27.4]} 13... Bd7 {[%clk
0:04:22.6]} 14. h4 {[%clk 0:03:18.8]} 14... b5 {[%clk 0:03:51.6]} 15. Bb3 {[%clk
0:03:13.7]} 15... Qb6 {[%clk 0:03:42]} 16. h5 {[%clk 0:03:08.1]} 16... Na6
{[%clk 0:03:30.1]} 17. h6+ {[%clk 0:02:43.9]} 17... Kg8 {[%clk 0:03:24.7]} 18.
Qf4 {[%clk 0:02:30.7]} 18... Be6 {[%clk 0:03:17]} 19. Qe5 {[%clk 0:02:26.7]} 1-0

[Event "Live Chess"]
[Site "Chess.com"]
[Date "2023.05.20"]
[Round "-"]
[White "PackedNote"]
[Black "killershark69420"]
[Result "1-0"]
[WhiteElo "780"]
[BlackElo "296"]
[TimeControl "300"]
[EndTime "9:24:35 PDT"]
[Termination "PackedNote won by checkmate"]

1. e4 {[%clk 0:04:57.8]} 1... e5 {[%clk 0:04:58.8]} 2. Nf3 {[%clk 0:04:56.9]}
2... Nf6 {[%clk 0:04:54.2]} 3. Nxe5 {[%clk 0:04:55.6]} 3... Nxe4 {[%clk
0:04:52.6]} 4. Qe2 {[%clk 0:04:55.2]} 4... Nc5 {[%clk 0:04:31]} 5. Nc6+ {[%clk
0:04:52.3]} 5... Qe7 {[%clk 0:04:19.5]} 6. Nxe7 {[%clk 0:04:51.3]} 6... Bxe7
{[%clk 0:04:18.5]} 7. d4 {[%clk 0:04:49.7]} 7... Ne4 {[%clk 0:04:09.5]} 8. Qxe4
{[%clk 0:04:43.9]} 8... d5 {[%clk 0:04:06.7]} 9. Qe2 {[%clk 0:04:40.9]} 9... b5
{[%clk 0:03:58.7]} 10. Bg5 {[%clk 0:04:38.9]} 10... c5 {[%clk 0:03:57.8]} 11.
Qxe7# {[%clk 0:04:37.5]} 1-0